Cogmind - Beta 17.1 @@@ ROGUE MODE // 2026.09.21 @ 11:40:18 Player: celerysam Result: Destroyed by S-10 Pest with Light Assault Rifle Performance ------------- Evolutions (0) 0 Regions Visited (2) 400 Robots Destroyed (30) 150 Value Destroyed (793) 793 Prototype IDs (1) 20 Alien Tech Used (0) 0 Bonus (5700) 5700 TOTAL SCORE: 7063 Bonus ------- Prayed to X0-1V1 5000 Major X0-1V1 Interference 700 Cogmind --------- Core Integrity 0/250 Matter 182/300 Energy 100/100 System Corruption 0% Temperature Cool (0) Movement Treading (480) Ox4 Location -10/Subcaves Parts ------- > --- POWER (1) -------- (None) > --- PROPULSION (2) --- Light Treads > --- UTILITY (2) ------ Huge Storage Unit > --- WEAPON (2) ------- Grenade Launcher > --- INVENTORY (25) --- Ion Engine Light Ion Engine Subdweller Monowheel Improved Heat Sink Small Storage Unit Medium Storage Unit Sensor Array Signal Interpreter Terrain Scanner Seismic Detector ECM Suite ECM Suite Small Laser Beam Cannon Light Assault Rifle Battle Rifle Subdweller Machine Gun Subdweller Machine Gun Grenade Launcher Datajack Hammer Peak State ------------ > --- POWER ------------ Ion Engine > --- PROPULSION ------- Light Treads Light Treads > --- UTILITY ---------- Huge Storage Unit X0-1V1's Piety Tracker > --- WEAPON ----------- Battle Rifle Light Cannon > --- INVENTORY -------- Ion Engine Light Ion Engine Light Treads Light Treads Subdweller Monowheel Improved Heat Sink Small Storage Unit Medium Storage Unit Sensor Array Signal Interpreter Terrain Scanner Seismic Detector ECM Suite ECM Suite Small Laser Beam Cannon Light Assault Rifle Subdweller Machine Gun Subdweller Machine Gun Grenade Launcher Grenade Launcher Grenade Launcher Datajack Hammer [Rating: 22] Favorites ----------- Power Ion Engine Engine Ion Engine Propulsion Light Treads Treads Light Treads Leg Aluminum Leg Wheel Compact Wheel Utility Huge Storage Unit Device Seismic Detector Storage Huge Storage Unit Weapon Light Cannon Energy Gun EM Pulse Gun Ballistic Gun Light Assault Rifle Ballistic Cannon Light Cannon Launcher Grenade Launcher Impact Weapon Hammer Build | -11 -10 -10 ------- Run | Yrd Mat Sub Slots Evolved . | . . . Power . | . . . Propulsion . | . . . Utility . | . . . Weapon . | . . . Parts Attached 30 | 6 16 8 Power 4 | 1 2 1 Engine 4 | 1 2 1 Core . | . . . Reactor . | . . . Propulsion 9 | 2 4 3 Treads 5 | . 2 3 Leg 2 | 2 . . Wheel 2 | . 2 . Hover . | . . . Flight . | . . . Utility 6 | 1 4 1 Device 4 | . 3 1 Storage 2 | 1 1 . Processor . | . . . Hackware . | . . . Protection . | . . . Artifact . | . . . Weapon 11 | 2 6 3 Energy Gun 5 | 2 3 . Energy Cannon . | . . . Ballistic Gun 2 | . 1 1 Ballistic Cannon 1 | . 1 . Launcher 2 | . 1 1 Special Weapon . | . . . Impact Weapon 1 | . . 1 Slashing Weapon . | . . . Piercing Weapon . | . . . Special Melee Weapon . | . . . Unidentified Prototypes 1 | . . 1 Parts Lost 19 | . 9 10 Power 4 | . 2 2 Propulsion 6 | . 2 4 Utility 2 | . . 2 Weapon 7 | . 5 2 Highest Loss Streak 4 | . 3 4 To Critical Strikes 1 | . 1 . Average Backups 17 | 4 15 22 Power 1 | . 1 2 Propulsion 2 | 3 2 1 Utility 7 | . 6 9 Weapon 5 | . 3 8 Tool/Special . | . . . Unused Backups 15 | . . 15 Power 2 | . . 2 Propulsion 1 | . . 1 Utility 6 | . . 6 Weapon 5 | . . 5 Tool/Special 1 | . . 1 Average Slot Usage (%) 97 | . 98 95 Engine 13 | . 14 13 Treads 24 | . 23 27 Wheel 2 | . 3 . Device 12 | . 13 10 Storage 14 | . 14 14 Energy Gun 3 | . 5 . Ballistic Gun 9 | . 11 4 Ballistic Cannon 11 | . 10 13 Impact Weapon 2 | . . 7 Peak Build Rating 22 | 6 10 22 Average Rating 11 | 4 8 18 On Entrance 5 | . 6 10 Avg Prop Armor Cover (%) . | . . . Naked Turns . | . . . Heaviest Build 92 | 12 90 92 Greatest Support 40 | 20 40 40 Greatest Overweight (x) 5 | 1 5 2 Average Overweight (x) 1 | . 2 2 Largest Inventory Capacity 25 | 8 25 25 Average Capacity 24 | 7 23 25 Most Carried 25 | 6 23 25 Average Carried 17 | 4 15 22 Final Capacity 25 | 8 25 25 Final Carried 23 | 6 23 21 Class Distribution -------------------- 100% | Mutant Dominant Class ---------------- Mutant | -10/Materials Mutant | -10/Subcaves Resources | -11 -10 -10 ----------- Run | Yrd Mat Sub Matter Collected 642 | 232 291 119 Remotely . | . . . Salvage Created 838 | . 648 190 Parts 49 | . 37 12 Haulers Intercepted 2 | . 2 . Recyclers Shooed . | . . . Parts Field Recycled . | . . . Retrieved Matter . | . . . Parts Self-Destructed 8 | . . 8 Prevented . | . . . Parts Restored . | . . . Kills | -11 -10 -10 ------- Run | Yrd Mat Sub Combat Hostiles Destroyed 24 | . 16 8 Guns 9 | . 8 1 Cannons 5 | . 3 2 AOE 9 | . 4 5 Classes Destroyed 6 | . 5 1 Builder 1 | . 1 . Hauler 2 | . 2 . Watcher 3 | . 3 . Swarmer 8 | . 6 2 Grunt 10 | . 10 . Subdweller 6 | . . 6 Best Kill Streak 5 | . 5 2 Combat Bots Only 5 | . 5 2 Max Kills in Single Turn 2 | . 1 2 Gunslinging . | . . . Exploded 2 | . 1 2 Melee . | . . . Uniques/NPCs Destroyed . | . . . Combat | -11 -10 -10 -------- Run | Yrd Mat Sub Hostile Shots Fired 211 | . 133 78 Missed 61 | . 41 20 Hits 150 | . 92 58 Projectile 150 | . 92 58 Critical Strikes 3 | . 2 1 Damage Taken 1844 | . 1020 824 Core 254 | . 130 124 Absorbed by Shields . | . . . Core Remaining (%) 100 | 100 . . Volleys Fired 114 | . 87 27 Largest 2 | . 2 2 Hottest 90 | . 90 60 Shots Fired 189 | . 148 41 Gun 135 | . 127 8 Cannon 43 | . 17 26 Launcher 11 | . 4 7 Special . | . . . Kinetic 80 | . 46 34 Thermal 34 | . 34 . Explosive 11 | . 4 7 Electromagnetic 64 | . 64 . Robot Hit Streak 10 | . 7 10 Robot Miss Streak 10 | . 10 1 Penetration Max . | . . . Secondary Targets 1 | . 1 . Max Gunslinging Chain 1 | . 1 . Shots Hit Robots 102 | . 72 30 Core Hits 45 | . 30 15 Critical Kills 1 | . 1 . Critical Parts Destroyed . | . . . Critical Strikes 3 | . 3 . Burn 1 | . 1 . Destroy 1 | . 1 . Corrupt 1 | . 1 . Melee Attacks 4 | . . 4 Impact 4 | . . 4 Slashing . | . . . Piercing . | . . . Sneak Attacks . | . . . Combat Hostiles . | . . . Follow-up Attacks . | . . . Damage Inflicted 1994 | . 1248 746 Guns 846 | . 776 70 Cannons 390 | . 182 208 Explosions 716 | . 248 468 Melee . | . . . Ramming 42 | . 42 . Kinetic 520 | . 242 278 Thermal 296 | . 296 . Explosive 659 | . 191 468 Electromagnetic 477 | . 477 . Impact . | . . . Slashing . | . . . Piercing . | . . . Highest Corruption . | . . . Average Corruption . | . . . Corruption Purged . | . . . Corruption Blocked . | . . . Overload Shots . | . . . Overflow Damage . | . . . Projectiles . | . . . Explosions . | . . . Melee . | . . . Knockbacks 6 | . 4 2 Impact . | . . . Kinetic 6 | . 4 2 Secondary . | . . . Self-Inflicted Damage 106 | . 82 24 Shots 4 | . 3 1 Rammed 2 | . 2 . Targets Rammed 2 | . 2 . Kicked . | . . . Crushed . | . . . Highest Temperature 324 | . 324 . Average Temperature 73 | . 73 . Received Heat Transfer 414 | . 366 48 Siege Activations . | . . . Martial Activations . | . . . Shielding Activations . | . . . Robots Disrupted . | . . . Combat Hostiles . | . . . Robots Corrupted 1 | . 1 . Combat Hostiles 1 | . 1 . Parts Fried 2 | . 2 . Impact Corruptions . | . . . Robots Melted . | . . . Combat Hostiles . | . . . Parts Melted . | . . . Heat Transferred 877 | . 877 . Parts Sabotaged . | . . . Parts Stolen . | . . . Parts Stripped . | . . . Power Chain Reactions 2 | . 2 . Alert | -11 -10 -10 ------- Run | Yrd Mat Sub Maximum Alert Level 1 | . 1 . Low Security (%) 99 | 100 99 . Level 1 . | . . . Level 2 . | . . . Level 3 . | . . . Level 4 . | . . . Level 5 . | . . . High Security . | . . . Max Security . | . . . Peak Influence 203 | . 203 . Initial . | . . . Average 45 | . 46 . Influence Increases 622 | . 567 55 Destroy 0b10 Robot/C 360 | . 320 40 Destroy 0b10 Robot/NC 30 | . 30 . Destroy Leader 80 | . 80 . Disable Machine 75 | . 75 . Destroy Structure 17 | . 17 . Partial Spotted 15 | . 15 . Lose Combat Pursuer 45 | . 30 15 Influence Decreases 611 | . 567 44 Time Decay 484 | . 480 4 Lost Part 127 | . 87 40 Squads Dispatched 3 | . 3 . Investigation . | . . . Extermination . | . . . Reinforcement 3 | . 3 . Assault . | . . . Garrison . | . . . Intercept . | . . . Searches Triggered . | . . . Construction Impeded . | . . . Haulers Reinforced . | . . . Active Scanning Responses . | . . . Cargo Convoy Interrupts . | . . . Stealth | -11 -10 -10 --------- Run | Yrd Mat Sub Distress Signals 4 | . 4 . Communications Jammed . | . . . Distress Signals . | . . . Times Spotted 47 | . 32 15 Peak Tracking Total 6 | . 4 6 Tactical Retreats 3 | . 2 1 ECM-based Alert Blocks 1 | . 1 . Traps | -11 -10 -10 ------- Run | Yrd Mat Sub Traps Triggered . | . . . Indirectly . | . . . Trap Hack Attempts . | . . . Triggered . | . . . Disarmed . | . . . Reprogrammed . | . . . Reused . | . . . Traps Extracted . | . . . Installed . | . . . Triggered . | . . . Machines | -11 -10 -10 ---------- Run | Yrd Mat Sub Machines Disabled 7 | . 5 2 Max in Single Turn 2 | . 1 2 Machines Repaired . | . . . Machines Dismantled . | . . . Machines Sabotaged . | . . . Overloaded Fab Kills . | . . . Hacking | -11 -10 -10 --------- Run | Yrd Mat Sub Machines Accessed 2 | . 2 . Terminals 2 | . 2 . Fabricators . | . . . Repair Stations . | . . . Recycling Units . | . . . Scanalyzers . | . . . Garrison Access . | . . . Total Hacks 2 | . 2 . Successful 2 | . 2 . Failed . | . . . Catastrophic . | . . . Database Lockouts . | . . . Manual 3 | . 3 . Terminals 2 | . 2 . Fabricators . | . . . Repair Stations . | . . . Recycling Units . | . . . Scanalyzers . | . . . Garrison Access . | . . . Terminal Hacks . | . . . Fabricator Hacks . | . . . Repair Station Hacks . | . . . Recycling Unit Hacks . | . . . Scanalyzer . | . . . Garrison Access Hacks . | . . . Unauthorized Hacks 2 | . 2 . Terminals 2 | . 2 . Botnet 2 | . 2 . Fabricators . | . . . Repair Stations . | . . . Recycling Units . | . . . Scanalyzers . | . . . Garrison Access . | . . . Data Cores Recovered . | . . . Used . | . . . Hacking Detections . | . . . Full Trace Events . | . . . Feedback Events . | . . . Feedback Blocked . | . . . Robot Schematics Acquired . | . . . Robots Built . | . . . Authchips . | . . . Time . | . . . Total Robot Build Rating . | . . . Part Schematics Acquired . | . . . Parts Built . | . . . Authchips . | . . . Time . | . . . Total Part Build Rating . | . . . Part Studies Acquired . | . . . Parts Repaired . | . . . Time . | . . . Parts Recycled . | . . . Recycled Matter . | . . . Retrieved Matter . | . . . Retrieved Components . | . . . Parts Scanalyzed . | . . . Part Schematics Acquired . | . . . Parts Damaged . | . . . Bothacking | -11 -10 -10 ------------ Run | Yrd Mat Sub Used RIF Installer . | . . . Robots Hacked . | . . . Non-combat . | . . . Combat . | . . . Robot Hacks Applied . | . . . Relay Couplers Released . | . . . Fabnet Peak Effective % . | . . . Robots Rewired . | . . . Allies Hacked . | . . . Hacks Repelled . | . . . Allies | -11 -10 -10 -------- Run | Yrd Mat Sub Total Allies . | . . . Largest Group . | . . . Highest-Rated Group . | . . . Highest-Rated Ally . | . . . Total Orders . | . . . Ally Attacks . | . . . Total Damage . | . . . Kills . | . . . Allies Corrupted . | . . . Allies Melted . | . . . X0-1V1 Amusement Gains 88 | . 8 80 Average Entertainment 5 | . 8 5 Bad Acts 4 | . . 4 Intel | -11 -10 -10 ------- Run | Yrd Mat Sub Active Infowar (turns) 2818 | . 2780 38 Terrain 233 | . 233 . Seismic 2366 | . 2328 38 ECM 219 | . 219 . Robot Analysis Total . | . . . Derelict Logs Recovered . | . . . Drone Launches . | . . . Drone Recoveries . | . . . Exploration | -11 -10 -10 ------------- Run | Yrd Mat Sub Turns Passed 4189 | 63 2792 1334 Spaces Moved 1367 | 51 929 387 Core 20 | 20 . . Treads 1071 | . 684 387 Legs 89 | 31 58 . Wheels 187 | . 187 . Hover . | . . . Flight . | . . . Fastest Speed 50 | 50 120 320 Average Speed 275 | 93 267 320 Slowest Speed 320 | 120 320 320 Overloaded Moves . | . . . Propulsion Burnouts . | . . . Robots Hopped . | . . . Potential Cave-ins . | . . . Cave-ins Triggered . | . . . Exploration Rate (%) 43 | 3 98 30 Regions Visited 2 Branch Regions 1 Pre-discovered Areas . | . . . Known Exits Taken . | . . . Unknown Exits Taken 2 | 1 1 . Scrap Searched . | . . . Spaces Dug 2 | . . 2 Terrain Destroyed 54 | . 16 38 Melee 2 | . . 2 Projectile . | . . . AOE 52 | . 16 36 Terrain Rammed . | . . . Walls Destroyed . | . . . Machines Disabled . | . . . Actions | -11 -10 -10 --------- Run | Yrd Mat Sub Total 1593 | 65 1092 436 Wait 30 | . 26 4 Move 1365 | 50 928 387 Hop . | . . . Pick Up 42 | 9 29 4 Fast Attach 3 | 3 . . Attach 19 | 3 10 6 Detach . | . . . Swap 12 | . 8 4 Drop 2 | . 2 . Fire 114 | . 87 27 Melee 4 | . . 4 Ram 2 | . 2 . Kick . | . . . Crush . | . . . Escape Stasis . | . . . Rewire . | . . . Trap . | . . . Miscellaneous . | . . . Route ------- -11/Scrapyard -10/Materials (discovered 6 exits: [*Mat x3] / [*Min x2] / [*Sub]) -10/Subcaves (discovered 3 exits: [*Mat x2] / [*Rec]) History --------- Turn | Location | Event 4 | -11/Scrapyard | Discovered new exit (range 15) 64 | -11/Scrapyard | Entered Materials 329 | -10/Materials | Discovered new exit (range 14) 330 | -10/Materials | Build established: Mutant 649 | -10/Materials | Lost 3 parts (1n2w) 695 | -10/Materials | Discovered new exit (range 8) 843 | -10/Materials | Discovered new exit (range 8) 1121 | -10/Materials | Core integrity fell below 50% 1269 | -10/Materials | Discovered new exit (range 7) 1731 | -10/Materials | Discovered new exit (range 16) 2248 | -10/Materials | Discovered new exit (range 16) 2849 | -10/Materials | Prayed at D.C.S.S. Altar Unit 2856 | -10/Materials | Entered Subcaves 2879 | -10/Subcaves | X0-1V1 sent you into danger 2927 | -10/Subcaves | Lost 3 parts (1p1n1u) 2949 | -10/Subcaves | Discovered new exit (range 10) 3298 | -10/Subcaves | Core integrity fell below 20% 3418 | -10/Subcaves | Lost 3 parts (2n1w) 3436 | -10/Subcaves | Discovered new exit (range 11) 4086 | -10/Subcaves | Curiously followed by a Cobbler waking with a query about "LVR3C" 4166 | -10/Subcaves | X0-1V1 sent hostile S-10 Pest (x4) 4171 | -10/Subcaves | Discovered new exit (range 7) 4190 | -10/Subcaves | Destroyed by S-10 Pest with Light Assault Rifle Last Messages --------------- Form resolidifies at new position. 04171_ Machine disabled. 04171_ S-10 Pest destroyed. 04171_ Machine disabled. 04172_ Acquired 12 matter. 04177_ Subatomizers dissect the Sub. Power Source. 04178_ X0-1V1's Piety Tracker destroyed. 04178_ X0-1V1 is mildly amused. 04179_ Flight Unit fries itself beyond repair. 04182_ Lgt. Cannon destroyed. 04187_ Subatomizers dissect the Sub. Power Source. 04188_ Ion Engine destroyed. 04189_ Lgt. Ion Engine fries itself beyond repair. 04189_ Lgt. Treads destroyed. 04190_ X0-1V1 is amused. 04190_ X0-1V1 cackles wildly! Map ----- +----------------------------------------------------+ | ?????????????????????????????????????????????????? | | ?????????????????????????????????????????????????? | | ?????????????????????????????????????????????????? | | ?????????????????????????????????????????????????? | | ?????????????????????????????????????????????????? | | ?????????????????????????????????????????????????? | | ?????????????????????????????????????????????????? | | ?????????????????????????????????????????????????? | | ?????????????????????????????????????????????????? | | ?????????????????????????????????????????????????? | | ?????????????????????????????????????????????????? | | ?????????????????????????????????????????????????? | | ?????????????????????????????????????????????????? | | ?????????????????????????????????????????????????? | | ?????????????????????????????????????????????????? | | ?????????????????????????????????????????????????? | | ????????????#????????????????????????????????????? | | ????????????# ????????????###????????????????????? | | ??????????### ???????????# ##??????????????????? | | ?????????# ???########% ##????????????????? | | ?????????# ??## #? ##??????????????? | | ?????????# ?# % #?# #??????????????? | | ?????????# #?# s "#?# #??????????????? | | ????????## s&s% ## #?# #??????????????? | | ???????? !%s % "### #??????????????? | | ????????????# % @<# #??????????????? | | ?????????????# ss""## #?#############? | | ?????????????## # "#??# ### ## ## | | ??????????????## ??# % %"#??## "" # | | ???????????????????#" """#???# "" | | ???????????????????########???# ### ### """"" | | ??????????????????????????????## ### ##?## """ | | ????????????#????#?##?###?###??## ##???## " | | ????????????# ## # ## ### ###?# #????## " | | ????????????# ### "#???##"" | | ????????????#% # ###??## " % | | ????????????# # ##% # ## ##?#### ##% | | ??????????????????## ### #?## # | | ????????????????? ##?#### #?# | | ?????????????? #######?????#### ### ## # | | ???????????? ?????????????????##### ##?### | | ???????????# ???????????????????????## ###?# | | ?????????????????????????????????????### ?# ### | | ???????????????????????????????????????##?## ## | | ????????????????????????????????????????### ## | | ???????????????????????????????????????## | | ???????????????????????????????????????# | | ???????????????????????????????????????# | | ???????????????????????????????????????# ## | | ???????????????????????????????????????# #? | +----------------------------------------------------+ Best States ------------- Heat Dissipation 25 Energy Generation 10 Energy Capacity 250 Matter Stores 300 Matter Capacity 300 Sight Range 16 Terrain Scan Range 14 Terrain Scan Density 10 ECM Strength 1 Evasion (%) 55 Recoil Reduction 2 Item Schematics ----------------- None Robot Schematics ------------------ None Fabricated ------------ Nothing Repaired ---------- Nothing Studied --------- None Alien Tech Used ----------------- None Achievements -------------- None Challenges ------------ None Game ------ Seed DeuteriumEncryptedMinigun Manual? 0 Play Time 00:21:21 Cumulative 309.9 hours Start 2026.09.20 @ 11:25:21 End 2026.09.21 @ 11:40:18 Sessions 3 Manual Loads 0 Difficulty Rogue Special Mode None Game No. 477 Rogue 477 Adventurer 0 Explorer 0 Win Type - Total 1 Types 1/0/0/0/0/0/0/0/0/0 Lore% 66 Gallery% 60 Achievement% 35 Wizard Run 0 Options --------- Layout 1 ASCII 0 Keyboard 0 Movement Mouse Keybinds 0 Fullscreen 2 Font 24/Tallcaps Map View 50x35 Zoom Use 0% Tactical HUD 1 Map Filters NONE Filters NONE Steam 1 RUN: e4c5a02b-45ee-4f70-80fb-0158e8a31585